bitfinex/quotes_ETHUSD_20210401
["timestamp","ask_amount","ask_price","bid_price","bid_amount"]
[1617262665539,6.73098,1927.2,1926.9,0.18117168]
[1617262668784,0.41,1927.4,1927.0,0.39]
[1617262668980,0.41,1927.4,1927.1,0.39]
[1617262669180,0.41,1927.4,1927.0,11.84312553]
[1617262669181,0.41,1927.4,1927.0,5.346]
[1617262669578,7.78029,1927.3,1926.9,0.18117168]
[1617262669779,0.4,1927.2,1926.9,0.18117168]
[1617262670412,0.529,1927.4,1926.9,0.18117168]
[1617262670613,0.41,1927.3,1926.9,0.18117168]
[1617262670813,9.855958,1927.2,1926.9,0.56117168]
[1617262671016,0.529,1927.4,1926.9,0.89017168]
[1617262671212,0.529,1927.4,1926.9,0.51017168]
[1617262672013,0.929,1927.4,1926.9,0.51017168]
[1617262672213,10.7837166,1927.4,1926.9,0.18117168]
[1617262672413,3.0037966,1927.4,1926.9,0.18117168]
[1617262672816,3.0037966,1927.4,1926.8,0.28]
[1617262673021,0.39,1927.2,1926.8,0.28]
[1617262673419,7.78164,1927.1,1926.8,0.28]
[1617262673619,6.78164,1927.1,1926.8,0.28]
[1617262674018,8.8567493,1927.1,1926.8,0.28]
[1617262674618,2.0,1927.0,1926.8,0.28]
[1617262674818,9.78159,1927.0,1926.8,0.28]
[1617262676045,8.83159,1927.0,1926.8,0.28]
[1617262676244,8.83159,1927.0,1926.6,0.39]
[1617262676445,8.83159,1927.0,1926.6,0.28]
[1617262677647,9.22159,1927.0,1926.6,0.28]
[1617262677852,15.24389,1927.0,1926.4,0.43137694]
[1617262678053,15.24389,1927.0,1926.5,0.42]
[1617262678704,14.19389,1927.0,1926.5,0.42]
[1617262679304,14.19389,1927.0,1926.4,0.43137694]
[1617262679504,0.4,1926.8,1926.4,0.43137694]
[1617262680507,0.119,1926.9,1926.4,0.43137694]
[1617262680710,7.78256,1926.7,1926.5,0.4]
[1617262680909,0.39,1927.2,1926.5,0.4]
[1617262681110,56.39368,1927.3,1926.6,0.42]
[1617262681111,46.0186,1927.3,1926.6,0.42]
[1617262681311,46.5276,1927.3,1926.7,0.28]
[1617262681513,16.7567,1927.3,1926.9,3.88939]
[1617262681714,16.7567,1927.3,1927.1,5.01]
[1617262682713,16.7567,1927.3,1927.2,3.33801898]
[1617262682914,16.7567,1927.3,1927.1,5.01]
[1617262683314,16.7567,1927.3,1927.2,5.01]
[1617262683781,16.7567,1927.3,1927.1,5.4]
[1617262683782,15.7567,1927.3,1927.1,5.4]
[1617262683992,15.7567,1927.3,1927.2,0.10661375]
[1617262684583,15.7567,1927.3,1927.2,5.11661375]
[1617262684785,15.7567,1927.3,1927.2,7.79661375]
[1617262684984,14.4964,1927.4,1927.2,7.79661375]
[1617262685186,0.41,1927.4,1927.3,5.01]
[1617262688791,37.18816,1927.7,1927.3,5.29]
[1617262689388,3.3081528,1927.6,1927.3,0.28]
[1617262690590,11.0865828,1927.6,1927.2,0.10661375]
[1617262692210,7.77843,1927.6,1927.3,0.38]
[1617262692409,14.7122,1927.8,1927.3,0.66]
[1617262693411,14.7122,1927.8,1927.4,0.38]
[1617262693610,14.7122,1927.8,1927.5,0.4]
[1617262693808,12.8367211,1927.9,1927.5,0.4]
[1617262694428,5.0590111,1927.9,1927.7,0.13118678]
[1617262694627,0.54135679,1928.0,1927.7,0.54118678]
[1617262695027,2.0,1927.9,1927.7,0.13118678]
[1617262697651,2.39,1927.9,1927.7,0.13118678]
[1617262698052,3.42719609,1927.9,1927.7,0.13118678]
[1617262698252,2.39,1927.9,1927.7,0.13118678]
[1617262699054,2.0,1927.9,1927.7,0.13118678]
[1617262699275,9.77744,1927.9,1927.7,0.13118678]
[1617262699675,8.77744,1927.9,1927.7,0.13118678]
[1617262700077,10.8517349,1927.9,1927.7,0.13118678]
[1617262700281,21.07938,1927.8,1927.7,0.13118678]
[1617262700482,21.07938,1927.8,1927.4,5.01]
[1617262700680,21.07938,1927.8,1927.2,5.01]
[1617262700881,21.07938,1927.8,1927.1,0.901]
[1617262702333,21.07938,1927.8,1927.1,5.911]
[1617262703335,21.07938,1927.8,1927.2,5.01]
[1617262704337,21.07938,1927.8,1927.3,0.15709551]
[1617262704535,21.07938,1927.8,1927.3,0.34609551]
[1617262704735,2.23594858,1927.7,1927.3,0.34609551]
[1617262704936,1.0,1927.6,1927.3,0.34609551]
[1617262705938,8.77861,1927.6,1927.4,1.5]
[1617262706137,19.28393404,1927.5,1927.4,1.5]
[1617262706337,18.05,1927.5,1927.4,1.5]
[1617262706538,26.6,1927.5,1927.4,0.0001]
[1617262706738,27.01,1927.5,1927.4,0.0001]
[1617262706942,2.0750499,1927.3,1927.0,4.83881842]
[1617262707154,1.0,1926.9,1926.4,0.49406894]
[1617262707354,9.4699,1926.9,1926.6,0.364]
[1617262707554,9.4699,1926.9,1926.7,1.5]
[1617262708555,29.28194,1926.8,1926.7,0.0001]
[1617262709780,28.28194,1926.8,1926.7,0.0001]
[1617262713404,28.28194,1926.8,1926.3,5.21546]
[1617262713604,28.28194,1926.8,1926.3,7.03746]
[1617262714006,28.68194,1926.8,1926.3,1.70546]
[1617262714208,1.0,1926.5,1926.3,1.70546]
[1617262714412,1.0,1926.2,1925.8,4.84233448]
[1617262714609,0.39,1926.0,1925.8,4.84233448]
[1617262714811,20.1716215,1925.9,1925.8,4.84233448]
[1617262715248,27.5216215,1925.9,1925.7,0.12211072]
[1617262715450,15.95,1925.8,1925.6,1.0]
[1617262715652,17.64729576,1925.7,1925.6,1.0]
[1617262715850,14.35,1925.7,1925.6,1.0]
[1617262716449,22.13724,1925.7,1925.6,1.0]
[1617262717250,14.0,1925.6,1925.2,0.4]
[1617262717454,29.35864,1925.6,1925.1,1.0]
[1617262717655,29.35864,1925.6,1925.2,0.287]
[1617262719259,7.5711,1925.6,1925.3,0.4]
[1617262719458,7.5711,1925.6,1925.3,0.54074789]
[1617262719658,1.1756,1925.8,1925.3,5.55074789]
[1617262719858,8.2935,1926.0,1925.5,0.4]
[1617262719859,3.29082548,1925.9,1925.5,0.4]
[1617262720677,15.178,1926.1,1925.5,0.4]
[1617262720678,22.14395,1926.1,1925.6,0.38]
[1617262720877,14.358,1926.1,1925.6,0.38]
[1617262721078,14.358,1926.1,1925.8,0.39]
[1617262721278,46.1985,1926.3,1925.9,0.4]
[1617262721477,46.0795,1926.3,1925.9,0.4]
[1617262721677,3.28438746,1926.2,1925.6,0.4]
[1617262721878,0.519,1926.2,1925.5,0.308]
[1617262722076,0.519,1926.2,1925.6,5.01]
[1617262722277,0.119,1926.2,1925.6,5.4]
[1617262722903,0.119,1926.2,1925.7,0.357]
[1617262723104,0.119,1926.2,1925.7,0.757]
[1617262723503,7.90404,1926.2,1925.7,0.757]
[1617262723903,11.06942746,1926.2,1925.7,0.357]
[1617262724506,21.9,1925.9,1925.8,0.12150493]
[1617262724706,21.9,1925.9,1925.2,1.46883262]
[1617262724707,28.3022,1925.9,1925.2,1.46883262]
[1617262724906,3.3806624,1925.8,1925.3,0.38]
[1617262725732,3.3806624,1925.8,1925.1,1.28]
[1617262725733,33.3806624,1925.8,1925.1,1.28]
[1617262725934,33.3806624,1925.8,1925.1,1.0]
[1617262725935,2.0770057,1925.6,1925.1,1.0]
[1617262726134,3.2616624,1925.5,1925.1,1.0]
[1617262726332,9.1951624,1925.5,1925.1,1.0]
[1617262726531,39.1951624,1925.5,1925.1,1.0]
[1617262727132,9.8664365,1925.4,1925.1,1.0]
[1617262727332,3.2616624,1925.3,1925.1,1.0]
[1617262727934,3.2616624,1925.3,1925.1,0.0001]
[1617262728558,11.0511924,1925.3,1925.1,0.0001]
[1617262729756,10.0511924,1925.3,1925.1,0.0001]
[1617262731179,17.24204,1925.5,1925.1,0.3901]
[1617262731380,3.24910764,1925.4,1925.1,0.3901]
[1617262731578,17.24204,1925.5,1925.1,0.3901]
[1617262731781,16.31914,1925.5,1925.1,0.3901]
[1617262731982,5.9335,1925.5,1925.1,0.0001]
[1617262732183,3.24910764,1925.4,1925.1,0.0001]
[1617262732381,5.44494584,1925.6,1925.1,0.0001]
[1617262732982,7.78822,1925.4,1925.1,0.0001]
[1617262733805,11.03732764,1925.4,1925.1,0.0001]
[1617262734409,3.24910764,1925.4,1925.1,0.0001]
[1617262734806,2.24910764,1925.4,1925.1,0.4001]
[1617262735007,14.44620174,1925.7,1925.3,0.4]
[1617262735008,4.06265174,1925.7,1925.3,0.4]
[1617262735208,4.06265174,1925.7,1925.5,0.39]
[1617262735409,31.3025,1925.8,1925.5,0.39]
[1617262739455,31.3025,1925.8,1925.7,17.36]
[1617262739660,14.0766,1925.8,1925.7,17.36]
[1617262739854,28.8427,1926.3,1925.7,17.36]
[1617262739855,36.62692,1926.3,1925.7,17.36]
[1617262740054,36.62692,1926.3,1925.9,0.4]
[1617262740663,36.62692,1926.3,1925.7,3.78]
[1617262740855,36.62692,1926.3,1925.6,0.1839417]
[1617262740856,44.32022,1926.3,1925.6,0.1839417]
[1617262741060,75.52022,1926.3,1925.6,0.1839417]
[1617262741680,0.38,1926.1,1925.1,0.0001]
[1617262741880,0.38,1926.1,1925.2,0.41]
[1617262741881,2.0768313,1925.7,1925.2,0.41]
[1617262742079,2.0768313,1925.7,1925.2,0.781]
[1617262742080,7.78778,1925.5,1925.2,0.781]
[1617262742479,9.1854,1925.7,1925.4,11.24]
[1617262742679,55.27493301,1926.3,1925.4,11.24]
[1617262742680,64.55813301,1926.3,1925.6,0.41]
[1617262742880,58.7994,1926.3,1925.6,0.41]
[1617262743079,58.7994,1926.3,1925.7,0.42]
[1617262743080,58.9184,1926.3,1925.7,0.42]
[1617262743278,58.9184,1926.3,1925.6,0.41]
[1617262743279,3.23667882,1926.2,1925.6,0.41]
[1617262743682,7.78572,1925.9,1925.6,0.41]
[1617262744145,7.78572,1925.9,1925.5,0.28]
[1617262744345,11.14139882,1925.9,1925.3,0.364]
[1617262744553,11.14139882,1925.9,1925.4,0.4]
[1617262745145,7.90472,1925.9,1925.4,0.4]
[1617262745346,30.0,1926.2,1925.7,0.39]
[1617262745547,30.0,1926.2,1925.8,0.39]
[1617262745548,3.23667882,1926.1,1925.8,0.39]
[1617262745746,11.02172882,1926.1,1925.8,0.39]
[1617262747151,11.02172882,1926.1,1925.2,12.99768351]
[1617262747350,11.14072882,1926.1,1925.6,0.41]
[1617262747551,11.14072882,1926.1,1925.7,0.39]
[1617262747752,11.02172882,1926.1,1925.7,0.67]
[1617262747951,7.78505,1926.1,1925.7,0.67]
[1617262748752,11.02172882,1926.1,1925.2,2.88]
[1617262748955,11.02172882,1926.1,1925.4,0.301]
[1617262749359,11.02172882,1926.1,1925.4,0.691]
[1617262749959,2.0765213,1925.9,1925.4,0.691]
[1617262750761,5.31320012,1925.9,1925.4,0.691]
[1617262750962,7.78696,1925.7,1925.4,0.691]
[1617262751161,11.02363882,1925.7,1925.4,0.301]
[1617262751564,2.0768221,1925.6,1925.4,0.301]
[1617262751786,9.5229221,1925.6,1925.2,5.39]
[1617262751988,9.5229221,1925.6,1925.2,0.38]
[1617262752387,3.23667882,1925.5,1925.1,0.0001]
[1617262752589,7.41023622,1925.5,1925.1,0.0001]
[1617262753187,42.80023622,1925.5,1925.1,0.0001]
[1617262753388,5.01,1925.3,1925.1,0.0001]
[1617262753588,28.58667882,1925.2,1925.1,0.0001]
[1617262753789,38.35057882,1925.2,1925.1,0.0001]
[1617262755810,23.38863882,1925.2,1925.1,0.0001]
[1617262756010,8.95277,1925.3,1925.1,0.0001]
[1617262756011,7.78897,1925.3,1925.1,0.0001]
[1617262756413,2.0770574,1925.5,1925.1,0.0001]
[1617262756610,3.23667882,1925.7,1925.1,0.0001]
[1617262756815,3.23667882,1925.7,1925.1,0.3901]
[1617262758235,11.02355882,1925.7,1925.1,0.3901]
[1617262759043,11.02355882,1925.7,1925.1,0.0001]
[1617262760065,11.02355882,1925.7,1925.1,0.4101]
[1617262761067,11.02355882,1925.7,1925.1,0.0001]
[1617262761469,4.06279343,1925.6,1925.1,0.0001]
[1617262761671,3.15661529,1925.5,1925.1,0.3901]
[1617262761869,3.15661529,1925.5,1925.1,0.0001]
[1617262762280,6.13955853,1925.6,1925.1,0.0001]
[1617262762480,6.13955853,1925.6,1925.1,0.4001]
[1617262763280,7.78835,1925.4,1925.1,0.4001]
[1617262764282,7.78835,1925.4,1925.1,0.0001]
[1617262765307,7.78835,1925.4,1925.1,0.4001]
[1617262768529,15.41295,1925.4,1925.1,0.0001]
[1617262769732,3.15578287,1925.3,1925.1,0.0001]
[1617262770556,19.63958,1925.2,1925.1,0.0001]
[1617262771155,7.78958,1925.2,1925.1,0.0001]
[1617262772358,11.02625882,1925.2,1925.1,0.0001]
[1617262772561,7.78958,1925.2,1925.1,0.0001]
[1617262773381,14.33958,1925.2,1925.1,0.0001]
[1617262774583,19.35,1925.1,1924.7,0.357]
[1617262774785,3.2519085,1925.0,1924.5,0.343]
[1617262774985,9.1334085,1925.0,1924.5,0.343]
[1617262775828,9.1334085,1925.0,1924.5,0.293]
[1617262776428,9.1334085,1925.0,1924.5,0.683]
[1617262777029,7.79036,1924.8,1924.5,5.693]
[1617262777229,7.79036,1924.8,1924.5,0.683]
[1617262778031,1.9064,1924.9,1924.5,0.683]
[1617262778632,7.79031,1924.8,1924.5,0.683]
[1617262779632,7.79031,1924.8,1924.7,0.38]
[1617262780656,1.9064,1924.9,1924.7,0.38]
[1617262780858,4.06368503,1925.1,1924.7,0.38]
[1617262781456,4.06368503,1925.1,1924.5,0.293]
[1617262781659,15.65013503,1925.1,1924.5,0.293]
[1617262782057,15.65013503,1925.1,1924.5,0.683]
[1617262782459,3.2519085,1925.0,1924.5,0.293]
[1617262782659,9.7730085,1925.0,1924.5,0.293]
[1617262782860,7.79019,1924.8,1924.5,0.293]
[1617262784084,11.0420985,1924.8,1924.5,0.293]
[1617262785689,2.2207,1924.9,1924.5,0.693]
[1617262785905,3.2519085,1925.0,1924.5,0.693]
[1617262786106,3.2519085,1925.0,1924.6,0.4]
[1617262786905,10.9913885,1925.0,1924.6,0.4]
[1617262787105,10.9913885,1925.0,1924.7,0.39]
[1617262788957,10.9913885,1925.0,1924.5,0.293]
[1617262789157,10.9913885,1925.0,1924.5,0.703]
[1617262789362,10.9913885,1925.0,1924.5,0.293]
[1617262789759,10.9913885,1925.0,1924.5,0.693]
[1617262790158,12.1913885,1925.0,1924.5,0.693]
[1617262790359,10.9913885,1925.0,1924.5,0.693]
[1617262792778,10.9913885,1925.0,1924.6,0.39]
[1617262794387,28.15,1924.8,1924.2,10.38598]
[1617262794586,7.79281,1924.5,1924.1,1.38]
[1617262794785,3.22634402,1924.4,1924.1,1.38]
[1617262794985,3.22634402,1924.4,1924.1,1.0]
[1617262794986,0.39,1924.3,1924.1,1.0]
[1617262795184,21.12634402,1924.2,1924.1,1.0]
[1617262796188,28.91971402,1924.2,1924.1,1.0]
[1617262796409,25.69337,1924.2,1924.1,1.0]
[1617262798210,18.15,1924.1,1923.6,1.0]
[1617262798413,3.2202276,1924.0,1923.6,1.0]
[1617262798612,7.79487,1923.8,1923.6,1.0]
[1617262799235,7.79487,1923.8,1923.7,1.5]
[1617262799433,7.79487,1923.8,1923.7,1.4]
[1617262801862,7.79487,1923.8,1923.7,1.33113719]
[1617262802063,12.94487,1923.8,1923.7,1.33113719]
[1617262802661,7.79487,1923.8,1923.7,1.33113719]
[1617262803263,7.2294,1924.0,1923.7,1.33113719]
[1617262803463,7.2294,1924.0,1923.6,1.38]
[1617262803662,2.0955,1924.2,1923.7,3.2202276]
[1617262803877,1.7155,1924.2,1923.8,1.5]
[1617262804083,44.92409858,1924.8,1923.9,3.2202276]
[1617262804084,48.98844559,1924.6,1923.9,3.2202276]
[1617262804289,48.98844559,1924.6,1924.2,0.4]
[1617262804491,47.362,1924.6,1924.3,1.9]
[1617262804886,47.362,1924.6,1924.4,3.6202276]
[1617262804887,33.0752,1924.6,1924.4,3.6202276]
[1617262805088,33.0752,1924.6,1924.5,20.0702276]
[1617262805089,18.1582,1924.6,1924.5,20.0702276]
[1617262805290,7.78898,1925.1,1924.5,34.29555953]
[1617262805488,4.06271214,1925.2,1924.5,34.29555953]
[1617262805489,4.06271214,1925.2,1924.8,0.41]
[1617262805688,4.06271214,1925.2,1924.8,4.30335]
[1617262805886,29.8183,1925.4,1924.8,4.59035]
[1617262806486,29.8183,1925.4,1924.9,7.78661]
[1617262806692,30.1983,1925.4,1924.8,4.18035]
[1617262806913,30.1983,1925.4,1925.1,1.5]
[1617262807312,15.423,1925.4,1925.1,1.5]
[1617262808315,15.223,1925.4,1925.1,1.5]
[1617262808914,22.86258712,1925.4,1925.1,1.5]
[1617262810637,22.86258712,1925.4,1925.1,1.89]
[1617262812066,22.86258712,1925.4,1925.1,2.89]
[1617262812872,2.0,1925.3,1925.1,2.89]
[1617262814475,2.0,1925.3,1925.2,0.38]
[1617262816314,2.0,1925.5,1925.2,0.38]
[1617262816517,2.0,1925.3,1925.2,0.38]
[1617262816715,2.0,1925.3,1925.1,1.28]
[1617262816918,0.5,1925.3,1925.1,1.68]
[1617262817120,0.5,1925.3,1925.1,1.28]
[1617262817316,0.5,1925.3,1925.2,1.5]
[1617262818917,6.65,1925.3,1925.2,1.5]
[1617262819964,14.0,1925.3,1925.2,1.5]
[1617262820763,6.65,1925.3,1925.2,1.5]
[1617262820963,12.1,1925.3,1925.2,1.5]
[1617262821163,22.48519,1925.3,1925.2,1.5]
[1617262821363,17.03519,1925.3,1925.2,1.5]
[1617262821564,0.5,1925.3,1925.2,0.0001]
[1617262821764,4.56195353,1925.3,1925.2,0.0001]
[1617262821963,0.5,1925.4,1925.2,0.0001]
[1617262824765,0.5,1925.4,1925.2,0.4001]
[1617262824971,0.5,1925.5,1925.3,3.6180353]
[1617262825191,35.83044459,1925.6,1925.3,3.6180353]
[1617262825192,0.5,1925.4,1925.3,3.6180353]
[1617262825391,0.5,1925.4,1925.3,0.4]
[1617262825591,0.5,1925.4,1925.3,3.62]
[1617262825790,0.5,1925.4,1925.3,0.4]
[1617262826192,0.5,1925.4,1925.2,3.89299]
[1617262826391,0.5,1925.4,1925.3,0.43]
[1617262828013,0.5,1925.5,1925.3,0.43]
[1617262829817,0.489,1925.5,1925.3,0.43]
[1617262830636,0.489,1925.5,1925.1,1.68]
[1617262833061,8.27645,1925.5,1925.1,1.68]
[1617262834293,8.27645,1925.5,1925.1,1.28]
[1617262834696,8.67645,1925.5,1925.1,1.28]
[1617262834897,8.67645,1925.5,1925.1,1.0]
[1617262834898,12.24671069,1925.5,1925.1,1.0]
[1617262835298,0.39,1925.4,1925.1,1.0]
[1617262835501,0.489,1925.3,1925.1,1.0]
[1617262836500,8.2773,1925.3,1925.1,1.0]
[1617262836700,10.65742613,1925.3,1925.1,1.0]
[1617262837099,8.2773,1925.3,1925.1,1.0]
[1617262837706,10.6570859,1925.3,1925.1,1.0]
[1617262838107,8.2773,1925.3,1925.1,1.0]
[1617262838309,9.4773,1925.3,1925.1,1.0]
[1617262838513,8.2773,1925.3,1925.1,1.0]
[1617262839511,0.489,1925.2,1925.1,1.0]
[1617262842540,0.489,1925.4,1925.1,1.0]
[1617262842741,0.489,1925.4,1925.1,8.1114553]
[1617262842944,0.489,1925.4,1925.1,17.0094553]
[1617262843141,0.489,1925.4,1925.1,20.8094553]
[1617262844765,0.489,1925.4,1925.2,0.41]
[1617262845165,0.489,1925.4,1925.3,6.4676979]
[1617262845565,0.489,1925.5,1925.3,6.4676979]
[1617262845765,0.489,1925.4,1925.3,6.4676979]
[1617262845970,0.489,1925.4,1925.3,0.1176979]
[1617262846614,0.489,1925.4,1925.3,5.3176979]
[1617262846817,0.489,1925.4,1925.3,0.1176979]
[1617262848017,0.425,1925.4,1925.3,0.1176979]
[1617262849022,0.425,1925.5,1925.3,0.1176979]
[1617262849223,0.425,1925.4,1925.3,0.1176979]
[1617262852039,0.425,1925.5,1925.3,0.1176979]
[1617262856584,8.2118,1925.5,1925.3,0.1176979]
[1617262860421,11.8098353,1925.5,1925.3,0.1176979]
[1617262860621,13.0098353,1925.5,1925.3,0.1176979]
[1617262860821,11.8098353,1925.5,1925.3,0.1176979]
[1617262861022,8.5918,1925.5,1925.3,0.1176979]
[1617262861223,8.2118,1925.5,1925.3,0.1176979]
[1617262863041,7.6818,1925.5,1925.3,0.1176979]
[1617262863241,2.0,1925.4,1925.3,0.1176979]
[1617262863841,2.0,1925.5,1925.3,0.1176979]
[1617262865469,9.78689,1925.5,1925.3,0.1176979]
[1617262871419,2.0,1925.5,1925.3,0.1176979]
[1617262877690,2.0,1925.5,1925.3,0.5076979]
[1617262877691,1.95,1925.5,1925.3,0.5076979]
[1617262879391,1.95,1925.5,1925.3,0.1176979]
[1617262883545,9.73658,1925.5,1925.3,0.1176979]
[1617262883939,9.73658,1925.5,1925.3,0.0676979]
[1617262886368,13.30622468,1925.4,1925.3,0.0676979]
[1617262886568,15.25622468,1925.4,1925.3,0.0676979]
[1617262886869,15.65622468,1925.4,1925.3,0.0676979]
[1617262887068,1.95,1925.4,1925.3,0.0676979]
[1617262887268,7.7869,1925.4,1925.3,0.0676979]
[1617262887469,9.7369,1925.4,1925.3,0.0676979]
[1617262890497,1.95,1925.4,1925.3,0.0676979]
[1617262890698,1.95,1925.5,1925.3,0.0676979]
[1617262890924,41.6313181,1925.6,1925.3,0.0676979]
[1617262890925,1.95,1925.4,1925.3,0.0676979]
[1617262891725,16.77993,1925.4,1925.3,0.0676979]
[1617262891926,16.36993,1925.4,1925.3,0.0676979]
[1617262893327,8.5832,1925.4,1925.3,0.0676979]
[1617262895944,8.5072,1925.4,1925.3,0.0676979]
[1617262898995,7.5072,1925.4,1925.3,0.0676979]
[1617262903617,7.8972,1925.4,1925.3,0.0676979]
[1617262904042,8.5072,1925.4,1925.3,0.0676979]
[1617262904842,16.29425,1925.4,1925.3,0.0676979]
[1617262905043,16.17425,1925.4,1925.3,0.0676979]
[1617262905642,11.17425,1925.4,1925.3,0.0676979]
[1617262905842,14.36647494,1925.4,1925.3,0.0676979]
[1617262907272,6.57942494,1925.4,1925.3,0.0676979]
[1617262908075,6.47942494,1925.4,1925.3,0.0676979]
[1617262908975,5.47942494,1925.4,1925.3,0.0676979]
[1617262909395,2.0,1925.2,1924.8,0.18086661]
[1617262909596,28.29,1924.9,1924.8,3.06086661]
[1617262909801,0.14,1924.7,1924.1,0.40906894]
[1617262909994,2.0,1924.6,1924.1,0.315]
[1617262911197,7.79122,1924.4,1924.1,0.315]
[1617262911393,2.0,1924.3,1924.1,0.315]
[1617262912956,2.0,1924.4,1924.1,0.315]
[1617262913958,1.0,1924.4,1924.1,0.315]
[1617262914157,1.0,1924.4,1924.1,0.705]
[1617262914357,1.0,1924.4,1924.1,0.84507728]
[1617262916159,1.14,1924.6,1924.1,0.84507728]
[1617262916363,1.14,1924.6,1924.1,0.14007728]
[1617262916559,13.33609204,1924.6,1924.2,0.329]
[1617262917372,1.0,1924.4,1924.1,4.983635]
[1617262917574,3.20594204,1924.3,1924.1,4.983635]
[1617262917772,1.0,1924.2,1924.1,4.84355772]
[1617262918772,8.79165,1924.2,1924.1,4.84355772]
[1617262919076,9.79165,1924.2,1924.1,5.84355772]
[1617262920699,2.0,1924.2,1924.1,5.84355772]
[1617262920898,3.20594204,1924.3,1924.1,5.84355772]
[1617262920899,2.0,1924.3,1924.1,5.84355772]
[1617262921099,2.0,1924.2,1924.1,6.12355772]
[1617262921707,9.79184,1924.2,1924.1,6.12355772]
[1617262924226,9.79184,1924.2,1924.1,5.84355772]
[1617262924428,10.99184,1924.2,1924.1,5.84355772]
[1617262925270,9.79184,1924.2,1924.1,5.84355772]
[1617262926072,9.79184,1924.2,1924.1,1.0]
[1617262926476,28.54184,1924.2,1924.1,0.0001]
[1617262927678,38.09184,1924.2,1924.1,0.0001]
[1617262928284,33.55184,1924.2,1924.1,0.0001]
[1617262928679,28.54184,1924.2,1924.1,0.0001]
[1617262928879,33.55184,1924.2,1924.1,0.0001]
[1617262932697,28.54184,1924.2,1924.1,0.0001]
[1617262932923,32.6053726,1924.2,1924.1,0.0001]
[1617262933523,37.6153726,1924.2,1924.1,0.0001]
[1617262935947,20.0653726,1924.2,1924.1,0.0001]
[1617262936145,13.8553726,1924.2,1924.1,0.0001]
[1617262936345,15.0553726,1924.2,1924.1,0.0001]
[1617262936545,21.8053726,1924.2,1924.1,0.0001]
[1617262936945,20.6053726,1924.2,1924.1,0.0001]
[1617262938171,14.0553726,1924.2,1924.1,0.0001]
[1617262938573,20.9568726,1924.2,1924.1,0.0001]
[1617262938773,28.1,1924.1,1923.7,0.4]
[1617262938975,5.9279869,1924.0,1923.6,1.0]
[1617262939175,7.79448,1923.8,1923.6,1.0]
[1617262939376,1.0,1923.7,1923.6,1.0]
[1617262939577,1.0,1923.7,1923.6,9.9]
[1617262939777,4.0635326,1924.2,1923.6,9.9]
[1617262939778,1.0,1923.8,1923.6,9.9]
[1617262939981,1.0,1923.7,1923.6,10.29]
[1617262940176,1.0,1923.7,1923.6,1.39]
[1617262941201,1.0,1923.7,1923.6,1.0]
[1617262941600,13.35,1923.7,1923.6,1.0]
[1617262942199,21.14407,1923.7,1923.6,1.0]
[1617262942999,20.14407,1923.7,1923.6,1.0]
[1617262943199,21.31884663,1923.7,1923.6,1.0]
[1617262946444,8.96884663,1923.7,1923.6,1.0]
[1617262946647,12.15090843,1923.7,1923.6,1.0]
[1617262946846,8.96884663,1923.7,1923.6,1.4]
[1617262947047,1.17477663,1923.9,1923.6,1.4]
[1617262947247,0.79477663,1923.7,1923.6,1.4]
[1617262947447,5.89477663,1923.7,1923.6,1.0]
[1617262947851,13.68837663,1923.7,1923.6,1.0]
[1617262948047,12.8936,1923.7,1923.6,1.0]
[1617262948247,7.7936,1923.7,1923.6,1.0]
[1617262948877,3.16204168,1923.8,1923.6,1.0]
[1617262949077,3.16204168,1923.8,1923.6,1.28]
[1617262949477,2.0782196,1923.9,1923.7,0.41]
[1617262949679,10.39082,1924.1,1923.8,0.39]
[1617262949878,20.7214979,1924.3,1924.0,0.41]
[1617262950077,20.7214979,1924.3,1924.0,0.704]
[1617262950678,18.1237,1924.3,1924.0,0.704]
[1617262951501,25.91488,1924.3,1924.0,0.41]
[1617262951899,25.91488,1924.3,1923.9,0.28]
[1617262952098,25.91488,1924.3,1923.9,0.67]
[1617262954124,25.91488,1924.3,1923.9,0.28]
[1617262954325,0.41,1924.2,1923.8,0.28]
[1617262954525,0.14,1924.1,1923.7,0.322]
[1617262955526,2.0780874,1924.0,1923.7,0.322]
[1617262955728,5.09820103,1924.0,1923.7,0.322]
[1617262956124,2.0780874,1924.0,1923.6,1.4]
[1617262956326,2.2180874,1924.0,1923.6,1.68]
[1617262956573,7.7935,1923.8,1923.6,1.28]
[1617262956771,2.0784315,1923.8,1923.6,1.28]
[1617262956972,2.0784315,1923.8,1923.6,1.0]
[1617262957772,7.79381,1923.7,1923.6,1.0]
[1617262958777,28.1,1923.6,1923.1,1.0]
[1617262958978,16.55,1923.2,1923.1,1.0]
[1617262959176,23.4801,1923.2,1923.1,1.0]
[1617262959573,7.9301,1923.2,1923.1,1.0]
[1617262959775,11.064885,1923.2,1923.1,1.0]
[1617262960173,18.861385,1923.2,1923.1,1.0]
[1617262960374,15.7266,1923.2,1923.1,1.0]
[1617262961577,15.7266,1923.2,1923.1,1.4]
[1617262961810,13.45433,1923.3,1923.1,1.4]
[1617262961811,0.54212299,1924.3,1923.1,29.5]
[1617262962011,0.54212299,1924.3,1924.0,0.39]
[1617262962012,15.8952,1924.3,1924.0,0.39]
[1617262962216,15.8952,1924.3,1924.0,8.18019]